[Event "DVM U20 2019"]
[Site "Braunschweig"]
[Date "2019.12.29"]
[Round "6"]
[White "Geltz, Noah"]
[Black "Schneider, Jana"]
[Result "0-1"]
[ECO "A09"]
[WhiteElo "2054"]
[BlackElo "2210"]
[Annotator "NA"]
[PlyCount "74"]
[EventDate "2019.12.27"]
[EventType "team-tourn"]
[EventRounds "7"]
[EventCountry "GER"]
[SourceTitle "playchess.com"]
[Source "ChessBase"]
[SourceQuality "1"]
[WhiteTeam "SF HN-Biberach"]
[BlackTeam "SC Bavaria Regensburg"]
[TimeControl "40/5400+30:1800+30"]

1. Nf3 {[%emt 0:00:00]} d5 {[%emt 0:00:00]} 2. c4 {[%emt 0:00:26]} d4 {[%emt 0:00:56]} 3. e3 {[%emt 0:01:12]} Nc6 {[%emt 0:00:34]} 4. exd4 {[%emt 0:02:19]} Nxd4 {[%emt 0:00:10]} 5. Nc3 {[%emt 0:06:38]} Bg4 {[%emt 0:03:35]} 6. Be2 {[%emt 0:01:13]} Nxe2 {[%emt 0:00:41]} 7. Qxe2 {[%emt 0:00:15]} c6 {[%emt 0:02:01]} 8. O-O {[%emt 0:02:34]} e6 {[%emt 0:00:57]} 9. Rd1 {[%emt 0:01:20]} Bd6 {[%emt 0:05:24]} 10. d4 {[%emt 0:02:11]} Qb8 {[%emt 0:04:21]} 11. h3 {[%emt 0:01:23]} Bxf3 {[%emt 0:00:38]} 12. Qxf3 {[%emt 0:00:09]} Ne7 {[%emt 0:01:15]} 13. b3 {[%emt 0:09:27]} O-O {[%emt 0:03:32]} 14. Bb2 {[%emt 0:05:16]} Ng6 {[%emt 0:04:14]} 15. Ne4 {[%emt 0:05:12]} Rd8 {[%emt 0:08:32]} 16. Kh1 {[%emt 0:05:37]} Bf8 {[%emt 0:04:51]} 17. Ng5 {[%emt 0:09:30]} Qf4 {[%emt 0:01:39]} 18. Qxf4 {[%emt 0:00:14]} Nxf4 {[%emt 0:00:06]} 19. g3 {[%emt 0:00:31]} Ng6 {[%emt 0:00:48]} 20. Rd3 {[%emt 0:03:03]} Rd7 {[%emt 0:02:05]} 21. f4 {[%emt 0:02:19]} h5 {[%emt 0:03:16]} 22. h4 {[%emt 0:02:02]} Ne7 {[%emt 0:01:00]} 23. Rad1 {[%emt 0:03:01]} Rad8 {[%emt 0:02:11]} 24. Kg2 {[%emt 0:01:31]} Nf5 {[%emt 0:01:09]} 25. Nf3 {[%emt 0:00:39]} f6 {[%emt 0:00:58]} 26. Ne1 {[%emt 0:06:22]} e5 {[%emt 0:07:33]} 27. fxe5 {[%emt 0:03:48]} fxe5 {[%emt 0:00:02]} 28. Rf3 {[%emt 0:03:25]} g6 {[%emt 0:00:59]} 29. Rd2 {[%emt 0:04:49]} e4 {[%emt 0:01:41]} 30. Rf4 {[%emt 0:01:09]} Bh6 {[%emt 0:00:08]} 31. Rxf5 {[%emt 0:00:26]} Bxd2 {[%emt 0:01:34]} 32. Rf1 {[%emt 0:01:42]} e3 {[%emt 0:01:32]} 33. Nf3 {[%emt 0:00:45]} e2 {[%emt 0:01:03]} 34. Rb1 {[%emt 0:00:14]} Re8 {[%emt 0:00:21]} 35. Nxd2 {[%emt 0:00:40]} e1=Q {[%emt 0:00:10]} 36. Rxe1 {[%emt 0:00:10]} Rxe1 {[%emt 0:00:03] normal} 37. Bc3 {[%emt 0:00:37] normal} Rc1 {[%emt 0:01:35] normal} 0-1

[Event "DVM U20 2019"]
[Site "Braunschweig"]
[Date "2019.12.29"]
[Round "6"]
[White "Martin III, Richard"]
[Black "Habersetzer, Elyse"]
[Result "1-0"]
[ECO "C02"]
[WhiteElo "2043"]
[BlackElo "1650"]
[Annotator "NA"]
[PlyCount "35"]
[EventDate "2019.12.27"]
[EventType "team-tourn"]
[EventRounds "7"]
[EventCountry "GER"]
[SourceTitle "playchess.com"]
[Source "ChessBase"]
[SourceQuality "1"]
[WhiteTeam "OSG Baden-Baden"]
[BlackTeam "SK Turm Kleve"]
[TimeControl "40/5400+30:1800+30"]

1. e4 {[%emt 0:00:00]} e6 {[%emt 0:00:00]} 2. d4 {[%emt 0:00:00]} d5 {[%emt 0:00:00]} 3. e5 {[%emt 0:00:00]} c5 {[%emt 0:00:00]} 4. c3 {[%emt 0:00:00]} Nc6 {[%emt 0:00:03]} 5. Nf3 {[%emt 0:00:00]} Qb6 {[%emt 0:00:10]} 6. Be2 {[%emt 0:00:00]} Bd7 {[%emt 0:01:35]} 7. O-O {[%emt 0:00:10]} Nge7 {[%emt 0:03:02]} 8. Na3 {[%emt 0:04:58]} cxd4 {[%emt 0:06:52]} 9. cxd4 {[%emt 0:00:10]} Nf5 {[%emt 0:00:34]} 10. Nc2 {[%emt 0:00:06]} Be7 {[%emt 0:00:53]} 11. Rb1 {[%emt 0:00:39]} O-O {[%emt 0:01:00]} 12. g4 {[%emt 0:00:37]} Nh4 {[%emt 0:01:52]} 13. Nxh4 {[%emt 0:00:29]} Bxh4 {[%emt 0:00:14]} 14. g5 {[%emt 0:03:01]} f6 {[%emt 0:04:50]} 15. gxf6 {[%emt 0:00:22]} gxf6 {[%emt 0:00:21]} 16. Bh6 {[%emt 0:00:20]} Rfd8 {[%emt 0:01:42]} 17. Bh5 {[%emt 0:05:14]} f5 {[%emt 0:04:19]} 18. Kh1 {[%emt 0:01:54] normal} 1-0

[Event "DVM U20 2019"]
[Site "Braunschweig"]
[Date "2019.12.29"]
[Round "6"]
[White "Elier, Ali"]
[Black "Roehr, Tobias"]
[Result "0-1"]
[ECO "B21"]
[WhiteElo "2032"]
[BlackElo "2103"]
[Annotator "NA"]
[PlyCount "53"]
[EventDate "2019.12.27"]
[EventType "team-tourn"]
[EventRounds "7"]
[EventCountry "GER"]
[SourceTitle "playchess.com"]
[Source "ChessBase"]
[SourceQuality "1"]
[WhiteTeam "SF Brackel"]
[BlackTeam "SG Aufbau Elbe Magdeburg"]
[TimeControl "40/5400+30:1800+30"]

1. e4 {[%emt 0:05:46]} c5 {[%emt 0:00:00]} 2. d4 {[%emt 0:00:05]} cxd4 {[%emt 0:00:00]} 3. c3 {[%emt 0:00:05]} Nf6 {[%emt 0:00:07]} 4. e5 {[%emt 0:00:03]} Nd5 {[%emt 0:00:06]} 5. Nf3 {[%emt 0:00:01]} Nc6 {[%emt 0:00:20]} 6. Bc4 {[%emt 0:00:04]} e6 {[%emt 0:01:45]} 7. cxd4 {[%emt 0:00:07]} d6 {[%emt 0:00:21]} 8. O-O {[%emt 0:01:29]} Be7 {[%emt 0:00:31]} 9. a3 {[%emt 0:00:46]} O-O {[%emt 0:01:42]} 10. Qe2 {[%emt 0:00:58]} b6 {[%emt 0:04:32]} 11. Bd3 {[%emt 0:08:00]} Qc7 {[%emt 0:07:12]} 12. Qe4 {[%emt 0:01:19]} f5 {[%emt 0:05:40]} 13. exf6 {[%emt 0:01:40]} Nxf6 {[%emt 0:00:07]} 14. Qh4 {[%emt 0:00:34]} d5 {[%emt 0:05:01]} 15. Bg5 {[%emt 0:16:05]} h6 {[%emt 0:03:11]} 16. Bf4 {[%emt 0:01:04]} Qb7 {[%emt 0:11:10]} 17. Be5 {[%emt 0:06:32]} Nd7 {[%emt 0:10:55]} 18. Qg4 {[%emt 0:02:01]} Ndxe5 {[%emt 0:06:07]} 19. dxe5 {[%emt 0:01:03]} Bg5 {[%emt 0:02:16]} 20. Nxg5 {[%emt 0:01:28]} Nxe5 {[%emt 0:05:41]} 21. Bh7+ {[%emt 0:00:24]} Kh8 {[%emt 0:00:05]} 22. Qh5 {[%emt 0:00:07]} Qe7 {[%emt 0:10:13]} 23. Nh3 {[%emt 0:01:55]} Nf3+ {[%emt 0:03:27]} 24. gxf3 {[%emt 0:00:34]} Kxh7 {[%emt 0:00:07]} 25. Re1 {[%emt 0:17:49]} e5 {[%emt 0:05:05]} 26. Rxe5 {[%emt 0:01:57]} Qf6 {[%emt 0:00:18]} 27. f4 {[%emt 0:04:08] normal} 0-1

[Event "DVM U20 2019"]
[Site "Braunschweig"]
[Date "2019.12.29"]
[Round "6"]
[White "Wu, Leon"]
[Black "Verfuerth, Kevin"]
[Result "1-0"]
[ECO "B77"]
[WhiteElo "2019"]
[BlackElo "2038"]
[Annotator "NA"]
[PlyCount "119"]
[EventDate "2019.12.27"]
[EventType "team-tourn"]
[EventRounds "7"]
[EventCountry "GER"]
[SourceTitle "playchess.com"]
[Source "ChessBase"]
[SourceQuality "1"]
[WhiteTeam "OSG Baden-Baden"]
[BlackTeam "SK Turm Kleve"]
[TimeControl "40/5400+30:1800+30"]

1. e4 {[%emt 0:00:00]} c5 {[%emt 0:00:00]} 2. Nf3 {[%emt 0:00:00]} d6 {[%emt 0:00:00]} 3. d4 {[%emt 0:00:03]} cxd4 {[%emt 0:00:01]} 4. Nxd4 {[%emt 0:00:05]} Nf6 {[%emt 0:00:09]} 5. Nc3 {[%emt 0:00:02]} g6 {[%emt 0:00:08]} 6. Be3 {[%emt 0:00:16]} Bg7 {[%emt 0:00:09]} 7. f3 {[%emt 0:00:13]} O-O {[%emt 0:00:10]} 8. Bc4 {[%emt 0:00:06]} Nc6 {[%emt 0:00:06]} 9. Qd2 {[%emt 0:00:17]} Bd7 {[%emt 0:01:02]} 10. Bb3 {[%emt 0:00:32]} Qa5 {[%emt 0:00:56]} 11. g4 {[%emt 0:03:09]} Nxd4 {[%emt 0:07:26]} 12. Bxd4 {[%emt 0:00:43]} Rfc8 {[%emt 0:04:35]} 13. h4 {[%emt 0:01:13]} h5 {[%emt 0:00:31]} 14. gxh5 {[%emt 0:03:40]} Nxh5 {[%emt 0:03:33]} 15. O-O-O {[%emt 0:03:35]} Bxd4 {[%emt 0:26:12]} 16. Qxd4 {[%emt 0:00:18]} Ng3 {[%emt 0:04:20]} 17. Rh2 {[%emt 0:00:41]} Nh5 {[%emt 0:24:04]} 18. Rg1 {[%emt 0:04:34]} e6 {[%emt 0:02:11]} 19. Qxd6 {[%emt 0:02:31]} Qc7 {[%emt 0:00:04]} 20. Qd2 {[%emt 0:04:06]} Qf4 {[%emt 0:00:32]} 21. Qxf4 {[%emt 0:01:52]} Nxf4 {[%emt 0:00:02]} 22. h5 {[%emt 0:00:30]} Rc5 {[%emt 0:02:34]} 23. hxg6 {[%emt 0:04:03]} fxg6 {[%emt 0:00:53]} 24. Ne2 {[%emt 0:02:32]} Nxe2+ {[%emt 0:00:41]} 25. Rxe2 {[%emt 0:00:05]} Kf7 {[%emt 0:01:37]} 26. Rd2 {[%emt 0:06:24]} Bc6 {[%emt 0:00:41]} 27. Rh1 {[%emt 0:00:25]} Rh5 {[%emt 0:00:34]} 28. Rxh5 {[%emt 0:02:03]} gxh5 {[%emt 0:00:02]} 29. Rh2 {[%emt 0:00:06]} Rh8 {[%emt 0:00:43]} 30. Kd2 {[%emt 0:03:18]} Kf6 {[%emt 0:01:25]} 31. Ke3 {[%emt 0:01:00]} e5 {[%emt 0:03:30]} 32. Bd5 {[%emt 0:01:46]} Bxd5 {[%emt 0:02:18]} 33. exd5 {[%emt 0:00:05]} h4 {[%emt 0:01:42]} 34. Rh3 {[%emt 0:01:13]} Kf5 {[%emt 0:00:47]} 35. c4 {[%emt 0:00:29]} a5 {[%emt 0:05:24]} 36. b3 {[%emt 0:00:36]} b6 {[%emt 0:00:48]} 37. a3 {[%emt 0:00:09]} Rh7 {[%emt 0:00:52]} 38. b4 {[%emt 0:00:29]} axb4 {[%emt 0:00:44]} 39. axb4 {[%emt 0:00:05]} Rh8 {[%emt 0:02:23]} 40. Kd3 {[%emt 0:10:38]} Ra8 {[%emt 0:04:53]} 41. c5 {[%emt 0:38:25]} bxc5 {[%emt 0:30:35]} 42. bxc5 {[%emt 0:00:06]} Ra4 {[%emt 0:00:20]} 43. c6 {[%emt 0:14:58]} Rd4+ {[%emt 0:00:31]} 44. Kc3 {[%emt 0:00:06]} Rxd5 {[%emt 0:00:14]} 45. Rxh4 {[%emt 0:00:03]} Ke6 {[%emt 0:00:00]} 46. Rc4 {[%emt 0:00:00]} Rd8 {[%emt 0:00:00]} 47. c7 {[%emt 0:00:00]} Rc8 {[%emt 0:00:00]} 48. Kd3 {[%emt 0:00:00]} Kd6 {[%emt 0:00:00]} 49. Ke4 {[%emt 0:00:00]} Ke6 {[%emt 0:00:00]} 50. Rc6+ {[%emt 0:00:00]} Kd7 {[%emt 0:00:00]} 51. Kd5 {[%emt 0:00:00]} e4 {[%emt 0:00:00]} 52. fxe4 {[%emt 0:00:00]} Ke7 {[%emt 0:00:00]} 53. Ke5 {[%emt 0:00:00]} Kd7 {[%emt 0:00:00]} 54. Rc3 {[%emt 0:00:00]} Ke7 {[%emt 0:00:00]} 55. Rc2 {[%emt 0:00:00]} Kd7 {[%emt 0:00:00]} 56. Kf6 {[%emt 0:00:00]} Rf8+ {[%emt 0:00:00]} 57. Kg7 {[%emt 0:00:00]} Rc8 {[%emt 0:00:00]} 58. Kf7 {[%emt 0:00:00]} Kd6 {[%emt 0:00:00]} 59. Rc1 {[%emt 0:00:00]} Kd7 {[%emt 0:00:00]} 60. e5 {[%emt 0:00:00] normal} 1-0

[Event "DVM U20 2019"]
[Site "Braunschweig"]
[Date "2019.12.29"]
[Round "6"]
[White "Seref, Erdogan"]
[Black "von Angern, Cedric"]
[Result "1/2-1/2"]
[ECO "A05"]
[WhiteElo "2003"]
[BlackElo "1867"]
[Annotator "NA"]
[PlyCount "98"]
[EventDate "2019.12.27"]
[EventType "team-tourn"]
[EventRounds "7"]
[EventCountry "GER"]
[SourceTitle "playchess.com"]
[Source "ChessBase"]
[SourceQuality "1"]
[WhiteTeam "SF Brackel"]
[BlackTeam "SG Aufbau Elbe Magdeburg"]
[TimeControl "40/5400+30:1800+30"]

1. Nf3 {[%emt 0:02:48]} Nf6 {[%emt 0:00:00]} 2. c4 {[%emt 0:00:15]} g6 {[%emt 0:00:31]} 3. g3 {[%emt 0:00:43]} Bg7 {[%emt 0:01:13]} 4. Bg2 {[%emt 0:00:19]} c5 {[%emt 0:02:32]} 5. O-O {[%emt 0:00:14]} O-O {[%emt 0:00:02]} 6. Nc3 {[%emt 0:00:53]} Nc6 {[%emt 0:01:27]} 7. a3 {[%emt 0:04:36]} a6 {[%emt 0:10:29]} 8. b4 {[%emt 0:09:00]} cxb4 {[%emt 0:05:15]} 9. axb4 {[%emt 0:00:07]} Nxb4 {[%emt 0:01:18]} 10. d4 {[%emt 0:03:45]} d6 {[%emt 0:08:23]} 11. Qb3 {[%emt 0:02:51]} Nc6 {[%emt 0:05:07]} 12. e4 {[%emt 0:05:49]} Qc7 {[%emt 0:03:32]} 13. c5 {[%emt 0:08:31]} dxc5 {[%emt 0:03:19]} 14. e5 {[%emt 0:01:29]} Nh5 {[%emt 0:08:02]} 15. Nd5 {[%emt 0:02:28]} Qd8 {[%emt 0:02:28]} 16. Rd1 {[%emt 0:07:56]} cxd4 {[%emt 0:11:08]} 17. Nxd4 {[%emt 0:02:19]} Nxd4 {[%emt 0:03:08]} 18. Rxd4 {[%emt 0:00:10]} Bxe5 {[%emt 0:03:10]} 19. Nf6+ {[%emt 0:03:41]} Nxf6 {[%emt 0:00:41]} 20. Rxd8 {[%emt 0:00:29]} Rxd8 {[%emt 0:00:01]} 21. Bb2 {[%emt 0:10:17]} Bxb2 {[%emt 0:00:22]} 22. Qxb2 {[%emt 0:00:07]} Rb8 {[%emt 0:02:12]} 23. Qa3 {[%emt 0:10:26]} Kf8 {[%emt 0:02:43]} 24. Rc1 {[%emt 0:03:27]} Be6 {[%emt 0:02:16]} 25. Bf3 {[%emt 0:04:46]} Nd5 {[%emt 0:06:31]} 26. Qb2 {[%emt 0:01:26]} Kg8 {[%emt 0:01:13]} 27. Qe5 {[%emt 0:00:11]} Rd6 {[%emt 0:05:06]} 28. h4 {[%emt 0:02:26]} f6 {[%emt 0:01:58]} 29. Qxe6+ {[%emt 0:00:04]} Rxe6 {[%emt 0:01:02]} 30. Bxd5 {[%emt 0:02:04]} b5 {[%emt 0:01:37]} 31. Bxe6+ Kf8 32. Rc8+ {[%emt 0:01:40]} Rxc8 {[%emt 0:00:35]} 33. Bxc8 {[%emt 0:00:05]} a5 {[%emt 0:00:04]} 34. Bd7 {[%emt 0:00:08]} b4 {[%emt 0:00:36]} 35. Ba4 {[%emt 0:00:03]} e5 {[%emt 0:00:55]} 36. Kf1 {[%emt 0:03:27]} Ke7 {[%emt 0:00:32]} 37. Ke2 {[%emt 0:00:16]} Kd6 {[%emt 0:05:07]} 38. Kd3 {[%emt 0:00:12]} Kd5 {[%emt 0:00:42]} 39. Bb3+ {[%emt 0:07:28]} Kc5 {[%emt 0:00:54]} 40. Ke4 {[%emt 0:02:23]} Kb5 {[%emt 0:02:57]} 41. Kd5 {[%emt 0:01:06]} a4 {[%emt 0:00:44]} 42. Bc4+ {[%emt 0:00:05]} Ka5 {[%emt 0:00:07]} 43. Kc5 {[%emt 0:04:05]} b3 {[%emt 0:02:33]} 44. h5 {[%emt 0:08:42]} gxh5 {[%emt 0:02:42]} 45. Be6 {[%emt 0:00:34]} f5 {[%emt 0:03:55]} 46. Kc4 {[%emt 0:00:35]} f4 {[%emt 0:00:24]} 47. gxf4 {[%emt 0:07:08]} exf4 {[%emt 0:00:04]} 48. Bd7 {[%emt 0:02:09]} h4 {[%emt 0:00:54]} 49. Kc3 {[%emt 0:01:07] normal} f3 {[%emt 0:04:42] normal} 1/2-1/2

[Event "DVM U20 2019"]
[Site "Braunschweig"]
[Date "2019.12.29"]
[Round "6"]
[White "Wagner, Benjamin"]
[Black "Kracht, Raphael"]
[Result "1-0"]
[ECO "C60"]
[WhiteElo "1994"]
[BlackElo "2031"]
[Annotator "NA"]
[PlyCount "44"]
[EventDate "2019.12.27"]
[EventType "team-tourn"]
[EventRounds "7"]
[EventCountry "GER"]
[SourceTitle "playchess.com"]
[Source "ChessBase"]
[SourceQuality "1"]
[WhiteTeam "SG Aufbau Elbe Magdeburg"]
[BlackTeam "SF Brackel"]
[TimeControl "40/5400+30:1800+30"]

1. e4 {[%emt 0:00:00]} e5 {[%emt 0:03:08]} 2. Nf3 {[%emt 0:00:00]} Nc6 {[%emt 0:00:07]} 3. Bb5 {[%emt 0:00:00]} Nge7 {[%emt 0:00:15]} 4. Nc3 {[%emt 0:00:00]} g6 {[%emt 0:00:04]} 5. d4 {[%emt 0:00:11]} exd4 {[%emt 0:00:04]} 6. Nd5 {[%emt 0:00:08]} Bg7 {[%emt 0:00:04]} 7. Bg5 {[%emt 0:00:10]} h6 {[%emt 0:00:06]} 8. Bf6 {[%emt 0:00:16]} Bxf6 {[%emt 0:00:05]} 9. Nxf6+ {[%emt 0:00:04]} Kf8 {[%emt 0:00:05]} 10. Qd2 {[%emt 0:00:52]} d6 {[%emt 0:00:04]} 11. O-O-O {[%emt 0:04:10]} a6 {[%emt 0:00:04]} 12. Bxc6 {[%emt 0:02:07]} Nxc6 {[%emt 0:00:08]} 13. Nd5 {[%emt 0:01:07]} Kg7 {[%emt 0:01:32]} 14. Nxd4 {[%emt 0:02:07]} Nxd4 {[%emt 0:00:07]} 15. Qxd4+ {[%emt 0:00:05]} f6 {[%emt 0:00:05]} 16. h4 {[%emt 0:10:12]} h5 {[%emt 0:02:49]} 17. f3 {[%emt 0:05:53]} Be6 {[%emt 0:01:33]} 18. g4 {[%emt 0:05:17]} hxg4 {[%emt 0:04:30]} 19. fxg4 {[%emt 0:00:16]} Bxg4 {[%emt 0:03:52]} 20. Rdf1 {[%emt 0:04:49]} Rf8 {[%emt 0:01:56]} 21. Rhg1 {[%emt 0:01:52]} Bh5 {[%emt 0:16:57]} 22. Nf4 {[%emt 0:02:33]} Kh6 {[%emt 0:05:03] normal} 1-0

[Event "DVM U20 2019"]
[Site "Braunschweig"]
[Date "2019.12.29"]
[Round "6"]
[White "Brunner, Wilken"]
[Black "Weisheit, Erik"]
[Result "1-0"]
[ECO "E70"]
[WhiteElo "1978"]
[BlackElo "1944"]
[Annotator "NA"]
[PlyCount "51"]
[EventDate "2019.12.27"]
[EventType "team-tourn"]
[EventRounds "7"]
[EventCountry "GER"]
[SourceTitle "playchess.com"]
[Source "ChessBase"]
[SourceQuality "1"]
[WhiteTeam "Karlsruher SF"]
[BlackTeam "SF Augsburg"]
[TimeControl "40/5400+30:1800+30"]

1. d4 Nf6 2. c4 g6 3. Nc3 Bg7 4. e4 d6 5. Nge2 O-O 6. Ng3 c5 7. d5 Na6 8. f3 Nc7 9. Be3 a6 10. Qd2 Re8 11. Be2 Rb8 12. h4 h5 13. e5 Nd7 14. exd6 exd6 15. Bg5 f6 16. Bh6 Ne5 17. O-O b5 18. Bxg7 Kxg7 19. f4 Nxc4 20. Bxc4 bxc4 21. f5 Re5 22. fxg6 Qe8 23. Rae1 Qxg6 {normal} 24. Rxe5 fxe5 {normal} 25. Nce4 {normal} Ne8 26. Qf2 {normal} 1-0

[Event "DVM U20 2019"]
[Site "Braunschweig"]
[Date "2019.12.29"]
[Round "6"]
[White "Brockmeyer, Tobias"]
[Black "Mundt, Alexandra"]
[Result "1-0"]
[ECO "D35"]
[WhiteElo "1902"]
[BlackElo "1775"]
[Annotator "NA"]
[PlyCount "49"]
[EventDate "2019.12.27"]
[EventType "team-tourn"]
[EventRounds "7"]
[EventCountry "GER"]
[SourceTitle "playchess.com"]
[Source "ChessBase"]
[SourceQuality "1"]
[WhiteTeam "SK Lehrte 1919"]
[BlackTeam "Lübecker SV"]
[TimeControl "40/5400+30:1800+30"]

1. d4 Nf6 2. c4 e6 3. Nc3 d5 4. cxd5 Nxd5 5. e4 Nb6 6. Nf3 {[%emt 0:00:00]} Be7 {[%emt 0:04:16]} 7. Be3 {[%emt 0:00:04]} N8d7 {[%emt 0:04:53]} 8. Be2 {[%emt 0:01:53]} Nf6 {[%emt 0:02:32]} 9. O-O {[%emt 0:01:09]} O-O {[%emt 0:02:04]} 10. h3 {[%emt 0:05:11]} Bd7 {[%emt 0:07:23]} 11. Qd2 {[%emt 0:03:32]} Bb4 {[%emt 0:06:28]} 12. Bd3 {[%emt 0:05:15]} Bc6 {[%emt 0:11:06]} 13. Qc2 {[%emt 0:02:40]} h6 {[%emt 0:00:37]} 14. Rfe1 {[%emt 0:06:37]} Qd7 {[%emt 0:07:28]} 15. Rac1 {[%emt 0:06:44]} a6 {[%emt 0:02:09]} 16. Ne5 {[%emt 0:05:56]} Qe8 {[%emt 0:00:17]} 17. g4 {[%emt 0:06:25]} Nfd7 {[%emt 0:01:22]} 18. Nxc6 {[%emt 0:03:52]} bxc6 {[%emt 0:00:01]} 19. g5 {[%emt 0:04:07]} hxg5 {[%emt 0:03:40]} 20. Bxg5 {[%emt 0:03:20]} e5 {[%emt 0:15:39]} 21. Be3 {[%emt 0:02:39]} Qe6 {[%emt 0:03:31]} 22. Kg2 {[%emt 0:06:38]} Qg6+ {[%emt 0:03:46]} 23. Kh1 Qh5 {[%emt 0:05:04]} 24. Bf1 {[%emt 0:06:26]} Rae8 {[%emt 0:10:06]} 25. Qe2 {[%emt 0:05:06] normal} 1-0

[Event "DVM U20 2019"]
[Site "Braunschweig"]
[Date "2019.12.29"]
[Round "6"]
[White "Rauch, Sören"]
[Black "Richter, Philipp"]
[Result "0-1"]
[ECO "A46"]
[WhiteElo "1901"]
[BlackElo "2084"]
[Annotator "NA"]
[PlyCount "74"]
[EventDate "2019.12.27"]
[EventType "team-tourn"]
[EventRounds "7"]
[EventCountry "GER"]
[SourceTitle "playchess.com"]
[Source "ChessBase"]
[SourceQuality "1"]
[WhiteTeam "SG Trier"]
[BlackTeam "USV TU Dresden"]
[TimeControl "40/5400+30:1800+30"]

1. d4 {[%emt 0:00:00]} Nf6 {[%emt 0:00:00]} 2. Nf3 {[%emt 0:00:00]} c5 {[%emt 0:00:00]} 3. c3 {[%emt 0:00:17]} d5 {[%emt 0:00:00]} 4. Bf4 {[%emt 0:00:04]} Nc6 {[%emt 0:00:43]} 5. e3 {[%emt 0:00:03]} Qb6 {[%emt 0:00:13]} 6. Qb3 c4 {[%emt 0:00:08]} 7. Qxb6 {[%emt 0:00:17]} axb6 {[%emt 0:00:06]} 8. Nbd2 {[%emt 0:00:00]} b5 {[%emt 0:00:52]} 9. Be2 {[%emt 0:00:05]} b4 {[%emt 0:01:12]} 10. O-O {[%emt 0:00:33]} Bf5 {[%emt 0:00:52]} 11. Ne5 {[%emt 0:02:54]} bxc3 {[%emt 0:11:31]} 12. bxc3 {[%emt 0:00:16]} Nxe5 {[%emt 0:00:25]} 13. dxe5 {[%emt 0:02:00]} Ne4 {[%emt 0:03:03]} 14. Nxe4 {[%emt 0:01:08]} Bxe4 {[%emt 0:00:09]} 15. a4 {[%emt 0:01:53]} Ra5 {[%emt 0:02:22]} 16. Bf3 {[%emt 0:08:51]} Bd3 {[%emt 0:05:00]} 17. Rfd1 {[%emt 0:01:13]} e6 {[%emt 0:01:56]} 18. Rd2 {[%emt 0:00:52]} Kd7 {[%emt 0:00:37]} 19. Rb2 {[%emt 0:11:59]} Kc6 {[%emt 0:01:41]} 20. Rb5 {[%emt 0:01:04]} Ra6 {[%emt 0:03:23]} 21. Bd1 {[%emt 0:02:51]} Bc5 {[%emt 0:05:52]} 22. h4 {[%emt 0:02:43]} h5 {[%emt 0:02:49]} 23. Ra2 {[%emt 0:06:24]} Bg6 {[%emt 0:01:21]} 24. Kf1 {[%emt 0:03:41]} f6 {[%emt 0:02:00]} 25. Ke2 {[%emt 0:04:01]} Rha8 {[%emt 0:01:18]} 26. Kd2 {[%emt 0:02:19]} Be8 {[%emt 0:05:31]} 27. Kc1 {[%emt 0:04:51]} b6 {[%emt 0:02:51]} 28. Rb1 {[%emt 0:06:55]} Kb7 {[%emt 0:00:56]} 29. Rba1 {[%emt 0:03:25]} b5 {[%emt 0:00:46]} 30. exf6 {[%emt 0:00:20]} gxf6 {[%emt 0:00:14]} 31. g4 {[%emt 0:06:12]} e5 {[%emt 0:07:00]} 32. Bg3 hxg4 {[%emt 0:00:41]} 33. Bxg4 {[%emt 0:02:22]} bxa4 {[%emt 0:00:43]} 34. Rd2 {[%emt 0:03:36]} Rd8 {[%emt 0:04:38]} 35. h5 {[%emt 0:02:12]} a3 {[%emt 0:05:21]} 36. Be2 {[%emt 0:02:30]} Kc7 {[%emt 0:01:41]} 37. e4 {[%emt 0:03:03]} Bf7 {normal} 0-1

[Event "DVM U20 2019"]
[Site "Braunschweig"]
[Date "2019.12.29"]
[Round "6"]
[White "Vuckovic, Robert"]
[Black "Wiesner, Alexander"]
[Result "0-1"]
[ECO "B23"]
[WhiteElo "1897"]
[BlackElo "1960"]
[Annotator "NA"]
[PlyCount "78"]
[EventDate "2019.12.27"]
[EventType "team-tourn"]
[EventRounds "7"]
[EventCountry "GER"]
[SourceTitle "playchess.com"]
[Source "ChessBase"]
[SourceQuality "1"]
[WhiteTeam "SF Augsburg"]
[BlackTeam "Karlsruher SF"]
[TimeControl "40/5400+30:1800+30"]

1. e4 {[%emt 0:00:00]} c5 {[%emt 0:00:00]} 2. Nc3 {[%emt 0:00:00]} g6 {[%emt 0:00:05]} 3. g3 {[%emt 0:00:34]} Bg7 {[%emt 0:00:11]} 4. d3 {[%emt 0:00:09]} Nc6 {[%emt 0:00:29]} 5. Be3 {[%emt 0:10:08]} b6 {[%emt 0:01:49]} 6. Bg2 {[%emt 0:00:30]} Bb7 {[%emt 0:00:30]} 7. Qd2 {[%emt 0:00:30]} d6 {[%emt 0:00:30]} 8. f4 {[%emt 0:00:30]} e6 {[%emt 0:00:30]} 9. Nf3 {[%emt 0:00:00]} Nge7 {[%emt 0:15:21]} 10. O-O {[%emt 0:00:00]} d5 {[%emt 0:11:22]} 11. Bf2 {[%emt 0:00:00]} dxe4 {[%emt 0:03:40]} 12. Nxe4 {[%emt 0:00:00]} Bxb2 {[%emt 0:01:30]} 13. Rab1 {[%emt 0:00:00]} Bg7 {[%emt 0:09:15]} 14. Nxc5 {[%emt 0:00:00]} Bc8 {[%emt 0:00:29]} 15. Ne4 {[%emt 0:00:00]} O-O {[%emt 0:03:36]} 16. h3 {[%emt 0:02:01]} Qc7 {[%emt 0:05:18]} 17. Rfe1 {[%emt 0:03:31]} Bb7 {[%emt 0:02:03]} 18. g4 {[%emt 0:00:11]} Nd5 {[%emt 0:14:47]} 19. g5 {[%emt 0:11:23]} Qxf4 {[%emt 0:04:26]} 20. Qe2 {[%emt 0:00:36]} Nc3 {[%emt 0:04:54]} 21. Nxc3 {[%emt 0:00:30]} Bxc3 {[%emt 0:00:06]} 22. Rf1 {[%emt 0:00:34]} Ne7 {[%emt 0:03:50]} 23. Be3 {[%emt 0:00:43]} Qg3 {[%emt 0:00:32]} 24. Rb3 {[%emt 0:01:06]} Be5 {[%emt 0:03:14]} 25. d4 {[%emt 0:01:53]} Bf4 {[%emt 0:02:19]} 26. Bxf4 {[%emt 0:01:50]} Qxf4 {[%emt 0:00:05]} 27. c3 {[%emt 0:00:14]} Qg3 {[%emt 0:00:39]} 28. Rf2 {[%emt 0:01:02]} Bxf3 {[%emt 0:04:25]} 29. Rxf3 {[%emt 0:00:02]} Qxg5 {[%emt 0:00:09]} 30. Rb5 {[%emt 0:00:27]} Qh4 {[%emt 0:00:37]} 31. Re5 {[%emt 0:02:47]} Rac8 {[%emt 0:00:44]} 32. Re4 {[%emt 0:04:12]} Qg5 {[%emt 0:00:39]} 33. Qe1 {[%emt 0:03:43]} Nf5 {[%emt 0:00:21]} 34. h4 {[%emt 0:01:32]} Qd8 {[%emt 0:02:53]} 35. Rg4 {[%emt 0:02:05]} h5 {[%emt 0:01:42]} 36. Rg5 {[%emt 0:00:36]} Kh7 {[%emt 0:00:38]} 37. Bh3 {[%emt 0:05:19]} Qc7 {[%emt 0:02:18]} 38. Bxf5 {[%emt 0:01:21]} exf5 {[%emt 0:00:09]} 39. Qd2 {[%emt 0:01:36]} f4 {[%emt 0:02:00] normal} 0-1